bitfinex/quotes_ETHUSD_20251116
["timestamp","ask_amount","ask_price","bid_price","bid_amount"]
[1763257728470,0.002,3142.7,3142.6,5.41766341]
[1763257728872,0.002,3142.7,3142.6,6.55140421]
[1763257729085,0.002,3142.7,3142.6,3.33969248]
[1763257729285,0.002,3142.7,3142.6,5.66602333]
[1763257730329,0.002,3142.7,3142.6,6.52177101]
[1763257730713,0.002,3142.7,3142.6,11.44664747]
[1763257730887,0.002,3142.7,3142.6,5.66602333]
[1763257731088,0.002,3142.7,3142.6,7.57551658]
[1763257731929,0.002,3142.7,3142.6,8.81591089]
[1763257732229,0.002,3142.7,3142.6,8.71419534]
[1763257732528,0.002,3142.7,3142.6,7.57551658]
[1763257736731,0.002,3142.7,3142.6,4.12677853]
[1763257736919,0.002,3142.7,3142.6,5.26051933]
[1763257737267,0.002,3142.7,3142.6,2.0154448]
[1763257737430,0.002,3142.7,3142.6,5.19752333]
[1763257737752,0.002,3142.7,3142.6,2.0154448]
[1763257737932,0.002,3142.7,3142.6,5.19752333]
[1763257738334,0.002,3142.7,3142.6,5.66602333]
[1763257738760,0.002,3142.7,3142.6,5.19752333]
[1763257739664,0.002,3142.7,3142.6,0.881704]
[1763257739873,0.002,3142.7,3142.6,4.06378253]
[1763257740681,0.002,3142.7,3142.1,1.70255807]
[1763257740835,0.002,3142.7,3141.0,7.3206198]
[1763257740836,0.0126,3142.6,3141.8,3.18288878]
[1763257741036,0.002,3142.7,3141.8,6.70370644]
[1763257741345,0.002,3142.7,3141.9,1.5392448]
[1763257741346,0.4698,3142.6,3141.9,1.5392448]
[1763257741880,0.002,3142.7,3142.1,0.405504]
[1763257742779,0.002,3142.7,3142.6,0.881704]
[1763257743442,0.002,3142.7,3142.3,1.1337408]
[1763257743639,0.002,3142.7,3142.4,0.405504]
[1763257743985,0.002,3142.7,3142.6,0.881704]
[1763257744404,0.002,3143.1,3142.7,0.4874]
[1763257744575,0.002,3143.1,3143.0,1.74600089]
[1763257744897,0.002,3143.1,3143.0,6.34699712]
[1763257745100,0.002,3143.1,3143.0,6.83719712]
[1763257745299,0.002,3143.4,3143.1,1.5392448]
[1763257745596,0.002,3143.4,3143.1,0.8533164]
[1763257745897,0.002,3143.4,3143.2,0.405504]
[1763257746106,0.002,3143.4,3143.3,0.892904]
[1763257746299,0.002,3143.4,3143.3,0.92471769]
[1763257746465,0.002,3143.4,3143.3,1.63796985]
[1763257746882,0.002,3143.4,3143.3,5.95308054]
[1763257747167,0.002,3143.4,3143.3,1.1337408]
[1763257747904,0.4414,3143.4,3143.3,1.1337408]
[1763257748201,0.4414,3143.4,3142.9,0.405504]
[1763257748509,0.8994,3143.4,3142.9,0.405504]
[1763257749404,0.8994,3143.4,3143.0,1.1337408]
[1763257749405,0.458,3143.3,3143.0,1.1337408]
[1763257749612,0.002,3143.4,3142.4,6.85471518]
[1763257749903,0.002,3143.4,3142.5,1.37557844]
[1763257750089,3.18328529,3143.4,3142.5,1.37557844]
[1763257750290,3.18328529,3143.4,3142.6,0.405504]
[1763257751001,3.18328529,3143.4,3142.3,1.1337408]
[1763257751002,0.176,3142.7,3142.3,1.1337408]
[1763257751311,0.4584,3143.3,3142.5,1.1337408]
[1763257751470,3.63977845,3143.3,3142.5,1.1337408]
[1763257751681,0.002,3143.4,3142.6,0.405504]
[1763257752275,0.002,3143.4,3142.6,0.895704]
[1763257752674,0.4522,3143.3,3142.6,0.405504]
[1763257753810,0.6369,3142.7,3142.3,1.3702678]
[1763257754115,0.6369,3142.7,3142.2,1.1337408]
[1763257754289,0.6369,3142.7,3142.3,0.405504]
[1763257754490,0.4522,3143.0,3142.5,0.001]
[1763257754814,0.1912,3142.9,3142.5,0.001]
[1763257755014,3.18140417,3143.3,3142.5,0.001]
[1763257755215,0.4522,3143.2,3142.5,0.001]
[1763257755788,3.18157233,3143.1,3142.5,1.1347408]
[1763257755989,0.6396,3142.6,3142.5,0.001]
[1763257756486,1.0917,3142.6,3142.5,0.001]
[1763257758516,4.27377853,3142.6,3142.5,0.001]
[1763257758819,0.6396,3142.6,3142.5,0.001]
[1763257759020,3.82508385,3142.9,3142.5,0.001]
[1763257759224,0.6433,3142.9,3142.5,0.001]
[1763257759428,0.4522,3142.8,3142.5,0.001]
[1763257759625,0.4522,3143.2,3142.5,0.001]
[1763257760391,3.63372394,3143.2,3142.5,0.001]
[1763257761226,3.18329963,3143.4,3142.5,0.001]
[1763257761227,3.18139188,3143.3,3142.5,0.001]
[1763257761388,0.002,3143.4,3142.6,0.405504]
[1763257761721,0.002,3143.4,3142.7,0.405504]
[1763257762092,0.002,3143.4,3142.8,0.4647]
[1763257762300,0.002,3143.4,3143.3,4.27627389]
[1763257762505,0.002,3143.4,3143.3,5.41001469]
[1763257762790,0.002,3143.4,3143.3,2.3983934]
[1763257763094,0.002,3143.4,3143.3,1.5392448]
[1763257763511,0.002,3143.4,3143.0,0.8533164]
[1763257763725,0.4522,3143.1,3142.7,4.03521841]
[1763257763900,0.4522,3143.1,3142.8,1.1337408]
[1763257764129,0.4522,3143.0,3142.7,0.405504]
[1763257764447,3.18334837,3143.4,3142.8,1.1337408]
[1763257764627,3.18328345,3143.4,3142.8,1.60586227]
[1763257765915,3.18326968,3143.4,3142.8,1.60586227]
[1763257766116,3.18329095,3143.4,3142.8,1.60586227]
[1763257766621,3.18329095,3143.4,3142.9,1.5392448]
[1763257766622,0.002,3143.4,3142.9,1.5392448]
[1763257766820,0.002,3143.4,3143.1,0.405504]
[1763257767544,0.002,3143.4,3143.0,0.83750758]
[1763257767855,0.002,3143.4,3142.9,1.5392448]
[1763257768053,0.002,3143.4,3143.1,0.1878]
[1763257768379,0.002,3143.4,3143.3,1.75415995]
[1763257768648,0.002,3143.4,3143.3,6.06927064]
[1763257768847,0.002,3143.4,3143.3,5.67771469]
[1763257769045,0.002,3143.4,3143.3,6.69618885]
[1763257769256,0.002,3143.4,3143.3,7.55223618]
[1763257770247,0.002,3143.4,3143.3,6.69618885]
[1763257770633,0.002,3143.4,3143.3,5.73908885]
[1763257771157,0.002,3143.4,3143.3,2.55771896]
[1763257771343,0.002,3143.4,3143.3,4.72061469]
[1763257771516,0.002,3143.4,3143.3,5.21301469]
[1763257772122,0.002,3143.4,3143.3,4.72061469]
[1763257772425,0.4842,3143.4,3143.3,1.1337408]
[1763257772719,0.002,3143.4,3143.3,1.1337408]
[1763257773136,0.002,3143.4,3142.8,1.1377552]
[1763257773137,4.08948593,3143.4,3142.9,3.1817496]
[1763257773456,0.4245,3143.3,3142.9,1.1337408]
[1763257773760,0.4245,3143.3,3142.7,3.18196696]
[1763257773960,0.002,3143.4,3142.9,0.405504]
[1763257774169,0.4522,3143.3,3142.7,3.92404059]
[1763257774372,0.002,3143.4,3142.7,3.92404059]
[1763257774373,0.002,3143.4,3143.3,0.4942]
[1763257774572,0.002,3143.4,3143.0,0.001]
[1763257774739,0.002,3143.4,3143.1,0.593304]
[1763257774940,0.002,3143.4,3143.2,0.37759689]
[1763257775370,0.002,3143.4,3143.1,0.405504]
[1763257775742,0.002,3143.4,3143.1,0.596704]
[1763257776652,0.002,3143.4,3143.1,6.76856626]
[1763257777836,0.002,3143.4,3143.1,3.58699393]
[1763257778379,0.002,3143.4,3143.1,6.76856626]
[1763257778574,0.002,3143.4,3143.2,0.67695663]
[1763257778763,0.002,3143.4,3143.3,4.08107389]
[1763257779874,0.002,3143.4,3143.3,5.21481469]
[1763257780981,0.4718,3143.4,3143.3,1.1337408]
[1763257781143,0.4718,3143.4,3143.3,4.31511069]
[1763257781478,0.002,3143.4,3143.3,4.80931069]
[1763257781650,0.002,3143.4,3143.3,4.31511069]
[1763257782070,0.002,3143.4,3143.3,5.15158418]
[1763257782272,0.002,3143.4,3143.3,6.50818818]
[1763257784588,0.002,3143.4,3143.3,4.72061469]
[1763257784789,0.9266,3143.4,3143.3,1.1337408]
[1763257785701,0.9266,3143.4,3143.0,0.001]
[1763257785702,7.28913736,3143.4,3143.0,0.001]
[1763257785879,0.0047,3143.1,3143.0,0.001]
[1763257786251,0.4703,3143.1,3143.0,0.001]
[1763257786861,0.0047,3143.1,3143.0,0.001]
[1763257787497,3.65187233,3143.1,3143.0,0.001]
[1763257788058,0.4703,3143.1,3143.0,0.001]
[1763257788488,3.65187233,3143.1,3143.0,0.001]
[1763257788754,0.4703,3143.1,3143.0,0.001]
[1763257788987,3.65187233,3143.1,3143.0,0.001]
[1763257790742,0.4703,3143.1,3143.0,0.001]
[1763257791043,3.65187233,3143.1,3143.0,0.001]
[1763257791343,3.18136989,3143.3,3143.0,0.001]
[1763257791495,0.4656,3143.3,3143.0,0.001]
[1763257791850,0.002,3143.4,3143.0,0.001]
[1763257792140,0.002,3143.4,3143.2,0.4942]
[1763257792705,0.002,3143.4,3143.3,0.4942]
[1763257792959,0.002,3143.4,3143.2,3.18138955]
[1763257793262,0.002,3143.4,3143.0,3.58817118]
[1763257793475,0.002,3143.4,3143.1,0.35881712]
[1763257794741,0.002,3143.4,3143.1,0.55001712]
[1763257795270,0.002,3143.4,3143.1,3.73155421]
[1763257795569,0.002,3143.4,3143.1,6.91312654]
[1763257795752,0.002,3143.4,3143.3,0.899704]
[1763257795952,0.002,3143.4,3143.3,1.87186482]
[1763257796144,0.002,3143.4,3143.3,2.32876482]
[1763257796769,0.002,3143.4,3143.3,1.84005113]
[1763257796979,0.002,3143.4,3143.3,2.29695113]
[1763257797275,0.002,3143.4,3143.3,5.02142102]
[1763257797428,0.002,3143.4,3143.3,6.15516182]
[1763257798175,0.002,3143.4,3143.3,5.74965782]
[1763257798348,0.002,3143.4,3143.3,6.15516182]
[1763257798936,0.4718,3143.4,3143.3,2.07408793]
[1763257799134,0.4718,3143.4,3143.3,1.1337408]
[1763257800060,0.002,3143.4,3143.3,1.1337408]
[1763257800443,0.4717,3143.4,3143.3,1.1337408]
[1763257800849,0.002,3143.4,3143.1,1.99154194]
[1763257801057,0.002,3143.4,3143.3,0.4942]
[1763257801256,0.002,3143.4,3143.3,0.9496985]
[1763257801590,0.002,3143.4,3143.3,6.62141319]
[1763257803250,0.002,3143.4,3143.3,6.16451319]
[1763257803593,0.002,3143.4,3143.3,7.76417198]
[1763257803947,0.002,3143.4,3143.3,7.30727198]
[1763257804178,0.002,3143.4,3143.3,6.81307198]
[1763257804373,0.002,3143.4,3143.3,5.26480919]
[1763257804590,0.002,3143.4,3143.3,6.12186481]
[1763257804945,0.002,3143.4,3143.3,6.58976481]
[1763257805145,0.002,3143.4,3143.3,6.60441319]
[1763257805393,0.002,3143.4,3143.3,5.47067239]
[1763257805883,0.002,3143.4,3143.3,6.60441319]
[1763257806094,0.002,3143.4,3143.3,8.31843415]
[1763257806594,0.002,3143.4,3143.3,6.60441319]
[1763257806944,0.002,3143.4,3143.3,8.88415491]
[1763257807348,0.002,3143.4,3143.3,6.60441319]
[1763257807579,0.002,3143.4,3143.3,8.88415491]
[1763257807890,0.002,3143.4,3143.3,6.60441319]
[1763257808307,0.002,3144.1,3143.8,3.759504]
[1763257808512,0.002,3144.1,3144.0,8.91696869]
[1763257809009,0.4828,3145.9,3144.6,1.5392448]
[1763257809213,0.4828,3145.9,3144.9,0.85543212]
[1763257809417,0.4828,3145.9,3144.9,0.405504]
[1763257809910,0.4828,3145.9,3145.1,1.5392448]
[1763257810082,0.4828,3145.9,3145.3,0.405504]
[1763257811477,0.1912,3146.0,3145.3,0.405504]
[1763257811693,4.62837059,3147.3,3145.6,0.405504]
[1763257811694,0.6721,3146.4,3145.6,0.405504]
[1763257811900,0.1893,3146.4,3145.6,0.405504]
[1763257812214,0.4828,3146.8,3145.6,0.871704]
[1763257812413,3.66063756,3146.8,3145.8,0.405504]
[1763257812729,0.4828,3146.8,3145.8,0.405504]
[1763257812893,3.36694963,3147.0,3145.8,0.405504]
[1763257813099,0.4828,3146.7,3145.8,0.405504]
[1763257813822,3.17803343,3146.6,3145.8,0.405504]
[1763257814123,6.35606686,3146.6,3145.8,4.71806595]
[1763257814330,0.6075,3145.9,3145.2,1.10781955]
[1763257814546,0.6075,3145.9,3145.4,1.1337408]
[1763257814547,0.4254,3145.9,3145.4,1.1337408]
[1763257814832,0.4797,3146.9,3145.8,0.4529]
[1763257815001,0.4797,3146.9,3145.9,0.405504]
[1763257815324,0.4297,3146.9,3145.9,0.405504]
[1763257815523,0.4297,3146.9,3145.9,0.879404]
[1763257815724,0.002,3147.1,3146.1,0.405504]
[1763257815938,0.002,3147.1,3146.0,1.6076408]
[1763257815939,0.002,3147.1,3146.5,1.1337408]
[1763257816094,0.002,3147.1,3146.2,4.31217725]
[1763257816425,0.4973,3146.5,3146.2,7.49061473]
[1763257816803,0.3263,3146.3,3146.0,1.1337408]
[1763257817001,3.36693274,3147.0,3146.0,1.1337408]
[1763257817305,6.54456548,3147.0,3146.0,1.1337408]
[1763257817505,0.4797,3146.9,3146.0,1.1337408]
[1763257818293,3.17783144,3146.8,3146.1,3.1785385]
[1763257818495,0.4797,3146.9,3146.2,1.1337408]
[1763257819228,0.1893,3147.0,3146.2,1.1337408]
[1763257819853,0.4797,3146.9,3145.9,1.5392448]
[1763257820016,0.4797,3146.9,3146.1,1.1337408]
[1763257820215,3.36694724,3147.0,3146.1,0.405504]
[1763257820515,0.4797,3146.9,3146.1,3.58402041]
[1763257821444,0.4797,3146.9,3146.2,1.1337408]
[1763257822216,3.17774634,3146.9,3146.4,1.1337408]
[1763257822435,3.17774634,3146.9,3145.8,3.84901004]
[1763257822436,0.3437,3146.5,3145.9,0.405504]
[1763257822915,0.8221,3146.5,3145.9,0.405504]
[1763257823246,0.8221,3146.5,3145.9,1.5392448]
[1763257823842,0.3437,3146.5,3145.9,1.5392448]
[1763257824047,0.1893,3147.0,3146.1,0.405504]
[1763257824232,0.1893,3147.0,3146.5,3.17813443]
[1763257824661,0.669,3147.0,3146.5,3.17813443]
[1763257825659,0.4797,3146.9,3146.3,1.1337408]
[1763257826268,0.4797,3146.9,3146.4,6.35647088]
[1763257826550,0.1893,3147.0,3146.5,1.1337408]
[1763257826974,0.4797,3146.9,3146.5,1.1337408]
[1763257827272,0.4797,3146.9,3146.4,3.17823544]
[1763257827273,0.3437,3146.6,3146.1,3.17847929]
[1763257827472,0.0034,3146.5,3146.1,3.17847929]
[1763257827673,0.0034,3146.5,3146.2,1.1337408]
[1763257827844,0.4831,3146.5,3146.1,3.17852678]
[1763257828174,0.4831,3146.5,3146.2,1.1337408]
[1763257828484,3.17823544,3146.4,3145.9,0.001]
[1763257828645,0.4797,3146.5,3145.9,0.001]
[1763257828974,0.1913,3147.0,3145.9,7.49219647]
[1763257828975,0.4797,3146.7,3145.9,7.49219647]
[1763257829173,0.4797,3146.7,3145.9,0.001]
[1763257829739,0.4797,3146.7,3146.0,1.1337408]
[1763257829938,0.4797,3146.7,3145.9,0.001]
[1763257830153,0.4797,3146.7,3146.0,1.1337408]
[1763257830351,0.4797,3146.7,3146.1,3.1785385]
[1763257830572,0.4797,3146.7,3146.1,6.357077]
[1763257831378,3.65764609,3146.7,3146.1,3.1785385]
[1763257831743,0.4797,3146.7,3146.1,3.1785385]
[1763257832274,0.4797,3146.7,3145.9,0.001]
[1763257832581,3.65764215,3146.7,3145.9,0.001]
[1763257832773,0.4797,3146.7,3145.9,0.001]
[1763257832986,0.671,3147.0,3146.0,0.405504]
[1763257833179,3.84863264,3147.0,3146.0,0.879404]
[1763257833344,0.671,3147.0,3146.0,0.879404]
[1763257833854,0.671,3147.0,3146.2,0.405504]
[1763257834415,0.002,3147.0,3146.4,1.5392448]
[1763257834592,0.002,3147.0,3146.5,1.11060375]
[1763257836111,0.002,3147.0,3146.9,0.886104]
[1763257836265,0.002,3147.0,3146.9,4.54183446]
[1763257836466,0.002,3147.0,3146.9,7.38643951]
[1763257836666,0.002,3147.0,3146.9,8.44286662]
[1763257837292,0.002,3147.0,3146.9,6.73200237]
[1763257837509,0.002,3147.0,3146.9,8.44129915]
[1763257838409,0.002,3147.0,3146.9,7.96329915]
[1763257838632,0.002,3147.0,3146.9,4.71697526]
[1763257838928,0.002,3147.0,3146.9,5.19757526]
[1763257839268,0.002,3147.0,3146.9,6.33755691]
[1763257839499,0.002,3147.0,3146.9,6.81555691]
[1763257839694,0.002,3147.0,3146.9,5.67557526]
[1763257839909,0.002,3147.0,3146.9,7.5124658]
[1763257841304,0.002,3147.0,3146.9,9.22231851]
[1763257842073,0.002,3147.0,3146.9,8.74431851]
[1763257842277,0.002,3147.0,3146.9,9.22231851]
[1763257844477,0.002,3147.0,3146.9,7.5124658]
[1763257846829,0.002,3147.0,3146.9,6.6289618]
[1763257846985,0.002,3147.0,3146.9,8.33742258]
[1763257847184,0.002,3147.0,3146.9,8.74292658]
[1763257848239,0.002,3147.0,3146.9,7.0344658]
[1763257848881,0.002,3147.0,3146.9,7.5124658]
[1763257849086,0.002,3147.0,3146.9,9.22092658]
[1763257850115,0.002,3147.0,3146.9,8.74292658]
[1763257850318,0.002,3147.0,3146.9,7.0344658]
[1763257850839,0.002,3147.0,3146.9,9.22092658]
[1763257853331,0.002,3147.0,3146.9,7.5124658]
[1763257854340,0.002,3147.0,3146.9,9.78856966]
[1763257855203,0.002,3147.0,3146.9,9.78822654]
[1763257855404,0.002,3147.0,3146.9,7.5124658]
[1763257859550,0.002,3147.0,3146.9,10.8664658]
[1763257860308,0.002,3147.0,3146.9,13.14222654]
[1763257860503,0.002,3147.0,3146.9,9.31022654]
[1763257860709,0.002,3147.0,3146.9,6.6289618]
[1763257860904,0.002,3147.0,3146.9,7.5124658]
[1763257861609,0.002,3147.0,3146.9,9.78822654]
[1763257863345,0.002,3147.0,3146.9,7.5124658]
[1763257863547,0.002,3147.0,3146.9,5.67557526]
[1763257863707,0.002,3147.0,3146.9,5.70735256]
[1763257863907,0.002,3147.0,3146.9,5.67557526]
[1763257864357,0.002,3147.0,3146.9,5.70735256]
[1763257865461,0.002,3147.0,3146.9,5.67557526]
[1763257865754,0.002,3147.0,3146.9,6.84604177]
[1763257865959,0.002,3147.0,3146.9,9.68730037]
[1763257867349,0.002,3147.1,3147.0,0.405504]
[1763257867534,0.002,3147.1,3147.0,2.4911448]
[1763257867743,0.002,3147.1,3147.0,5.66877428]
[1763257867924,0.002,3147.1,3147.0,7.27238039]
[1763257868262,0.8673,3147.1,3147.0,3.17762948]
[1763257868425,0.3928,3147.1,3147.0,4.31137028]
[1763257868627,0.002,3147.1,3147.0,4.80197028]
[1763257868828,0.002,3147.1,3147.0,5.29504657]
[1763257869027,0.002,3147.1,3147.0,6.7605951]
[1763257869442,0.4882,3147.1,3147.0,5.8644911]
[1763257869652,0.002,3147.1,3147.0,5.8644911]
[1763257870139,0.002,3147.1,3147.0,6.2699951]
[1763257871780,0.8673,3147.1,3147.0,1.5392448]
[1763257872060,0.8673,3147.1,3147.0,6.02531332]
[1763257872268,0.8673,3147.1,3147.0,6.43081732]
[1763257874858,0.002,3147.1,3147.0,10.41740501]
[1763257875058,0.002,3147.1,3147.0,11.30441835]
[1763257875599,0.8675,3147.1,3147.0,6.5962838]
[1763257875776,0.002,3147.1,3147.0,4.31137028]
[1763257875937,0.002,3147.1,3147.0,5.67635057]
[1763257876132,0.002,3147.1,3147.0,5.64457428]
[1763257876365,0.002,3147.1,3147.0,7.23267897]
[1763257876585,0.002,3147.1,3147.0,6.76007897]
[1763257876735,0.48,3147.1,3147.0,6.30497897]
[1763257876943,0.8682,3147.1,3147.0,4.71687428]
[1763257877285,0.8682,3147.1,3147.0,6.0252771]
[1763257877442,0.48,3147.1,3147.0,6.0252771]
[1763257877645,0.002,3147.1,3147.0,6.4307811]
[1763257878177,0.8682,3147.1,3147.0,6.4307811]
[1763257880486,0.4791,3147.1,3147.0,7.39173205]
[1763257880693,0.4791,3147.1,3147.0,5.67782523]
[1763257880991,0.002,3147.1,3147.0,5.67782523]
[1763257881358,0.4783,3147.1,3147.0,5.67782523]
[1763257881593,0.4783,3147.1,3147.0,6.0253452]
[1763257881594,0.8683,3147.1,3147.0,6.0253452]
[1763257881757,0.8683,3147.1,3147.0,4.31137028]
[1763257882291,0.002,3147.1,3147.0,6.4308492]
[1763257882490,0.4774,3147.1,3147.0,6.4308492]
[1763257882655,0.4774,3147.1,3147.0,7.39180689]
[1763257883961,0.002,3147.1,3147.0,7.39180689]
[1763257884582,0.002,3147.1,3147.0,6.13293197]
[1763257884781,0.002,3147.1,3147.0,6.60553197]
[1763257886314,0.8675,3147.1,3146.7,1.71389621]
[1763257886463,0.1813,3146.8,3145.9,0.001]
[1763257886662,0.1813,3146.8,3144.8,2.28628542]
[1763257886663,13.10152972,3146.7,3144.8,2.28628542]
[1763257886971,0.6593,3145.6,3143.7,9.54285387]
[1763257887183,0.1813,3145.6,3144.1,1.3169408]
[1763257887358,0.4678,3145.5,3144.1,0.1832]
[1763257887696,0.4678,3145.5,3144.0,4.77283073]
[1763257888010,0.4678,3145.5,3144.1,0.1832]
[1763257888174,0.4678,3145.5,3144.1,1.3169408]
[1763257888375,0.4678,3145.5,3144.2,0.60897715]
[1763257888793,0.4678,3145.5,3144.5,1.1337408]
[1763257889293,0.4678,3145.5,3144.6,0.405504]
[1763257889498,3.64696424,3145.5,3144.5,0.405504]
[1763257889794,0.4671,3145.4,3144.5,1.5392448]
[1763257890001,0.4671,3145.4,3144.5,2.21584659]
[1763257890522,0.4002,3144.6,3144.2,0.60897715]
[1763257890667,0.4002,3144.6,3143.9,3.18076274]
[1763257890868,0.4002,3144.6,3144.1,0.405504]
[1763257891297,0.1813,3145.6,3144.1,0.588704]
[1763257891298,0.4664,3145.0,3144.1,0.588704]
[1763257891505,0.1813,3145.6,3144.6,1.5392448]
[1763257891679,0.4678,3145.5,3144.6,1.5392448]
[1763257891879,0.4678,3145.5,3144.8,0.405504]
[1763257892802,0.4678,3145.5,3145.0,1.5392448]
[1763257893010,3.17822094,3146.5,3145.0,1.5392448]
[1763257893011,0.4678,3146.5,3145.5,0.405504]
[1763257893317,0.002,3147.1,3145.7,0.405504]
[1763257893318,0.4678,3146.6,3145.7,0.405504]
[1763257894279,0.4802,3147.0,3146.1,1.5392448]
[1763257894507,0.002,3147.1,3146.3,0.405504]
[1763257894662,0.002,3147.1,3146.4,0.03178235]
[1763257894868,0.002,3147.1,3146.6,1.5392448]
[1763257895311,0.002,3147.1,3146.8,0.405504]
[1763257895464,0.002,3147.1,3147.0,0.874904]
[1763257895664,0.002,3147.1,3147.0,0.97027747]
[1763257895914,0.002,3147.1,3147.0,7.26687553]
[1763257896208,0.002,3147.4,3147.1,1.5392448]
[1763257896363,1e-08,3147.5,3147.4,0.874904]
[1763257896568,0.002,3147.8,3147.4,0.874904]
[1763257896813,0.002,3147.8,3147.7,5.18556763]
[1763257897112,0.002,3147.8,3147.7,6.54765094]
[1763257897311,0.002,3148.7,3147.8,1.5392448]
[1763257897607,0.002,3148.7,3148.3,1.5392448]
[1763257898202,0.002,3148.7,3148.2,1.5392448]
[1763257898402,0.002,3148.7,3148.5,0.405504]
[1763257898901,0.002,3148.7,3148.6,4.71525953]
[1763257899205,0.002,3148.7,3148.6,5.9737981]
[1763257900001,0.002,3148.7,3148.6,11.23202883]
[1763257900514,0.002,3149.1,3148.7,2.4940448]
[1763257900805,0.002,3149.1,3149.0,5.1842561]
[1763257901003,0.002,3149.1,3149.0,6.50565431]
[1763257901370,0.4802,3150.4,3149.1,1.5392448]
[1763257901371,0.002,3149.4,3149.1,1.5392448]
[1763257901606,0.002,3149.4,3149.3,6.31207553]
[1763257901807,0.1977,3150.5,3149.4,1.5392448]
[1763257902109,0.4802,3150.4,3150.0,1.5392448]
[1763257902412,0.4802,3150.4,3149.7,0.405504]
[1763257902595,0.4802,3150.4,3149.5,1.1337408]
[1763257902596,0.1977,3150.5,3150.0,1.5392448]
[1763257902911,0.1977,3150.7,3150.2,1.5392448]
[1763257903268,0.4802,3150.6,3150.2,1.5392448]
[1763257903469,0.3381,3150.3,3150.2,1.5392448]
[1763257903682,0.3381,3150.3,3150.1,0.405504]
[1763257903882,0.4836,3150.2,3150.1,1.5392448]
[1763257904184,0.0034,3150.2,3150.1,1.5392448]
[1763257904404,0.1977,3150.7,3150.1,2.32809732]
[1763257904405,0.4802,3150.6,3150.1,2.32809732]
[1763257904588,0.4802,3150.6,3150.1,1.5392448]
[1763257905188,0.4802,3150.6,3150.2,6.34880324]
[1763257906424,0.1977,3150.7,3150.2,6.34880324]
[1763257906594,0.1977,3151.0,3150.3,1.5392448]
[1763257907418,0.1977,3151.0,3150.1,0.1863]
[1763257907419,0.4802,3150.9,3150.5,1.5392448]
[1763257907622,0.4802,3150.9,3149.5,1.6191408]
[1763257907915,0.4802,3150.9,3149.7,1.1337408]
[1763257908113,0.4802,3150.9,3149.4,6.35041594]
[1763257908320,0.3381,3149.7,3149.4,6.35041594]
[1763257908702,0.5358,3149.7,3149.5,1.1337408]
[1763257908903,0.5358,3149.7,3149.6,0.405504]
[1763257909122,0.1977,3149.9,3149.6,0.405504]
[1763257909446,0.1977,3149.9,3149.8,1.5392448]
[1763257909634,0.1977,3149.9,3149.8,0.405504]
[1763257909820,0.5372,3149.9,3149.8,1.5392448]
[1763257910388,1.0146,3149.9,3149.8,1.5392448]
[1763257910802,1.0146,3149.9,3149.4,4.30894877]
[1763257910992,0.485,3149.8,3149.4,7.48415674]
[1763257911186,0.3334,3149.5,3149.4,4.71445277]
[1763257911787,0.8136,3149.5,3149.4,0.405504]
[1763257912018,0.8136,3149.5,3149.4,4.71445277]
[1763257912337,0.1977,3149.9,3149.5,1.5392448]
[1763257912537,0.1977,3151.0,3149.5,1.5392448]
[1763257912538,0.4802,3150.4,3149.5,1.5392448]
[1763257913736,0.4802,3150.4,3149.7,1.5392448]
[1763257915444,0.5358,3149.8,3149.7,1.5392448]
[1763257915641,0.5358,3149.8,3149.7,4.71415034]
[1763257915809,1.0146,3149.8,3149.6,0.405504]
[1763257916014,0.0048,3149.7,3149.6,0.405504]
[1763257916243,0.0048,3149.7,3149.6,1.5392448]
[1763257916244,0.485,3149.7,3149.6,1.5392448]
[1763257916445,0.485,3149.7,3149.6,0.405504]
[1763257916611,0.485,3149.7,3149.0,3.1756113]
[1763257916812,0.3334,3149.6,3149.0,6.3512226]
[1763257917060,0.4802,3149.5,3149.1,1.5392448]
[1763257917257,0.4802,3149.5,3148.2,7.78259692]
[1763257917429,0.4802,3149.5,3148.3,0.77825969]
[1763257917626,0.6779,3149.8,3149.1,0.405504]
[1763257918057,0.3381,3149.2,3149.0,0.001]
[1763257918259,6.54733118,3149.8,3149.0,0.001]
[1763257918260,0.485,3149.1,3149.0,0.001]
[1763257920319,0.1977,3149.8,3149.0,0.001]
[1763257920554,0.1977,3149.8,3149.1,0.591804]
[1763257920792,0.002,3149.9,3149.6,0.405504]
[1763257920951,0.002,3149.9,3149.8,5.73991945]
[1763257921171,0.002,3149.9,3149.8,6.20931945]
[1763257921467,0.002,3149.9,3149.8,6.61482345]
[1763257921951,0.002,3150.6,3150.3,0.405504]
[1763257922147,0.002,3150.6,3150.2,0.6557]
[1763257922148,0.002,3150.6,3150.5,6.61482345]
[1763257922365,0.002,3150.6,3150.5,7.2763058]
[1763257922931,0.002,3150.6,3150.5,2.20072715]
[1763257923135,0.002,3150.6,3150.5,1.5392448]
[1763257923744,0.002,3150.6,3150.5,4.71334414]
[1763257925576,0.002,3150.6,3150.5,10.25212279]
[1763257925780,0.002,3150.6,3150.5,9.77242279]
[1763257926088,0.6618,3152.0,3150.6,1.5392448]
[1763257926248,0.6618,3152.0,3150.5,21.40927535]
[1763257926249,0.4641,3151.9,3151.0,1.5392448]
[1763257926969,0.4641,3151.9,3151.2,0.405504]
[1763257927190,0.3541,3151.1,3150.7,2.29485202]
[1763257927365,0.4641,3151.9,3150.7,0.405504]
[1763257927566,0.4641,3151.8,3151.0,0.405504]
[1763257927971,0.3541,3151.1,3150.5,1.5392448]
[1763257928185,0.0035,3151.0,3150.5,1.5392448]
[1763257929206,0.1925,3150.9,3150.5,1.5392448]
[1763257929487,0.1925,3150.9,3150.5,0.94250826]